bitfinex/quotes_ETHUSD_20251015
["timestamp","ask_amount","ask_price","bid_price","bid_amount"]
[1760512634540,2.5987,4133.2,4131.5,0.2292]
[1760512634738,0.1208,4133.0,4132.5,2.4197851]
[1760512634942,0.1387,4132.9,4132.4,2.41989374]
[1760512635261,0.1208,4133.0,4132.5,2.41978955]
[1760512635466,0.1387,4132.9,4132.5,2.41978955]
[1760512635663,0.1208,4133.0,4132.3,0.1208]
[1760512635841,4.55116846,4133.7,4132.1,0.2353]
[1760512635842,0.7277782,4134.6,4132.9,3.77586846]
[1760512636041,0.23720397,4135.3,4134.4,2.41873065]
[1760512636042,0.843,4134.5,4134.4,2.41873065]
[1760512636242,0.843,4134.5,4134.4,2.53953065]
[1760512636453,0.843,4134.5,4134.4,2.41873065]
[1760512636764,2.462,4134.5,4134.4,2.88453065]
[1760512636968,2.462,4134.5,4134.4,3.00533065]
[1760512637177,0.23720397,4135.3,4135.2,2.41826272]
[1760512637340,2.70020397,4135.3,4135.2,2.41826272]
[1760512637668,0.23720397,4135.3,4135.2,2.53906272]
[1760512637870,2.70020397,4135.3,4135.2,3.00486272]
[1760512638060,2.70020397,4135.3,4135.2,2.53906272]
[1760512638260,2.69920397,4135.3,4135.2,2.53906272]
[1760512638657,0.23720397,4135.3,4135.2,2.53906272]
[1760512638848,2.70120397,4135.3,4135.2,2.53906272]
[1760512639373,2.70120397,4135.3,4135.2,2.88406272]
[1760512639575,2.70120397,4135.3,4135.2,2.41826272]
[1760512640176,4.88120397,4135.3,4135.2,2.41826272]
[1760512640544,4.88120397,4135.3,4135.2,2.88406272]
[1760512640965,4.88120397,4135.3,4135.2,2.41826272]
[1760512643449,4.88120397,4135.3,4135.2,2.88406272]
[1760512644177,0.23720397,4135.3,4135.2,2.88406272]
[1760512644351,0.67320397,4135.3,4135.2,3.41672419]
[1760512644571,0.23720397,4135.3,4135.2,3.41672419]
[1760512644769,1.16320397,4135.3,4135.2,3.41672419]
[1760512644980,0.26623377,4136.4,4136.3,2.41761961]
[1760512645177,1.17823377,4136.4,4136.3,2.41761961]
[1760512645759,0.26623377,4136.4,4136.3,2.41761961]
[1760512646292,2.72823377,4136.4,4136.3,5.45331025]
[1760512646874,2.73123377,4136.4,4136.3,5.45331025]
[1760512648296,2.73123377,4136.4,4136.3,2.41761961]
[1760512649271,2.73123377,4136.4,4136.3,0.1208]
[1760512649476,2.73123377,4136.4,4136.1,2.41772559]
[1760512649686,2.73123377,4136.4,4136.1,2.53852559]
[1760512649901,0.26623377,4136.4,4136.3,2.53841961]
[1760512650106,3.82023377,4136.4,4136.3,2.53841961]
[1760512650312,4.91023377,4136.4,4135.4,0.72725421]
[1760512650603,3.82023377,4136.4,4136.1,0.1208]
[1760512650904,0.26623377,4136.4,4136.1,0.1208]
[1760512651108,2.464,4136.3,4136.2,2.41767806]
[1760512651323,2.464,4136.3,4136.1,0.1208]
[1760512651604,2.464,4136.3,4135.4,0.2353]
[1760512651767,2.464,4136.3,4135.8,0.1208]
[1760512651768,2.73732338,4136.3,4135.8,0.1208]
[1760512651969,2.464,4136.3,4135.8,0.1208]
[1760512652168,2.464,4136.3,4135.8,2.53866875]
[1760512652393,2.464,4136.3,4135.8,2.53870465]
[1760512652589,2.464,4136.2,4136.1,2.41773651]
[1760512652771,0.26623377,4136.4,4136.1,0.1208]
[1760512652969,0.26623377,4136.4,4136.3,2.41761961]
[1760512653165,1.62323377,4136.4,4136.3,2.53841961]
[1760512653396,1.62323377,4136.4,4136.3,0.1208]
[1760512653600,1.62323377,4136.4,4136.3,2.53841961]
[1760512654276,2.73023377,4136.4,4136.3,2.53841961]
[1760512655170,0.26623377,4136.4,4136.3,3.05756462]
[1760512655383,1.53923377,4136.4,4136.3,3.52336462]
[1760512655906,0.26623377,4136.4,4136.3,5.44336462]
[1760512656084,2.24923377,4136.4,4136.3,5.44336462]
[1760512656285,0.26623377,4136.4,4136.3,5.44336462]
[1760512656494,2.72923377,4136.4,4136.3,5.44336462]
[1760512657504,0.26623377,4136.4,4136.3,5.44336462]
[1760512657698,2.72923377,4136.4,4136.3,5.44336462]
[1760512657893,0.26623377,4136.4,4136.3,5.44336462]
[1760512658095,2.72923377,4136.4,4136.3,5.44336462]
[1760512658293,2.72923377,4136.4,4136.3,4.97756462]
[1760512658497,2.72923377,4136.4,4136.3,4.45841961]
[1760512659016,2.72823377,4136.4,4136.3,4.45841961]
[1760512659216,2.72823377,4136.4,4136.3,4.92421961]
[1760512659377,2.72823377,4136.4,4136.3,2.53841961]
[1760512660113,4.90623377,4136.4,4135.8,0.72714668]
[1760512660314,4.90623377,4136.4,4136.0,1.92]
[1760512660520,4.90623377,4136.4,4136.2,2.41767712]
[1760512660685,0.26623377,4136.4,4136.2,2.41767712]
[1760512660884,2.462,4136.3,4136.2,2.41767712]
[1760512661085,2.462,4136.3,4136.1,2.41771846]
[1760512661281,2.462,4136.3,4136.2,2.41767806]
[1760512661831,2.462,4136.3,4136.2,2.86937806]
[1760512662114,0.26623377,4136.4,4136.3,2.41761961]
[1760512662416,2.72823377,4136.4,4136.3,2.86931961]
[1760512662601,0.26623377,4136.4,4136.3,2.86931961]
[1760512662802,2.72823377,4136.4,4136.3,2.86931961]
[1760512663009,2.72823377,4136.4,4136.3,3.50080899]
[1760512663395,2.72823377,4136.4,4136.3,2.41761961]
[1760512667289,2.72823377,4136.4,4136.3,2.86931961]
[1760512667533,0.26623377,4136.4,4136.3,2.86931961]
[1760512667697,2.72823377,4136.4,4136.3,2.86931961]
[1760512667903,2.72823377,4136.4,4136.3,2.41761961]
[1760512668934,0.26623377,4136.4,4136.3,2.41761961]
[1760512669223,2.72723377,4136.4,4136.3,2.4417958]
[1760512669423,0.26623377,4136.4,4136.3,5.36779824]
[1760512669590,2.72723377,4136.4,4136.3,5.34362205]
[1760512670226,4.90523377,4136.4,4136.3,5.01272205]
[1760512670431,4.90523377,4136.4,4136.3,5.46442205]
[1760512671007,1.35523377,4136.4,4136.3,5.46442205]
[1760512671207,2.72623377,4136.4,4136.3,5.46442205]
[1760512671709,0.26623377,4136.4,4136.3,5.46442205]
[1760512671924,2.72623377,4136.4,4136.3,5.46442205]
[1760512672299,0.26623377,4136.4,4136.3,5.46442205]
[1760512672795,0.94823377,4136.4,4136.3,5.46442205]
[1760512673611,0.26623377,4136.4,4136.3,5.46442205]
[1760512673899,1.52323377,4136.4,4136.3,5.46442205]
[1760512674100,1e-08,4136.6,4136.5,2.41750271]
[1760512674328,0.29526356,4137.6,4137.5,2.41691842]
[1760512674539,0.29526356,4137.6,4137.5,4.90071842]
[1760512674746,0.32429335,4138.7,4137.6,1.92]
[1760512675046,0.7051,4138.6,4138.5,0.1208]
[1760512675344,0.7051,4138.6,4137.4,0.223]
[1760512675345,2.5601,4138.6,4137.5,1.92]
[1760512675548,0.1001,4138.5,4136.9,2.586]
[1760512675837,0.1001,4138.4,4137.7,2.4167922]
[1760512676004,0.1001,4138.4,4137.5,2.416864]
[1760512676207,0.32429335,4138.7,4137.1,0.443]
[1760512676408,2.5621,4138.6,4137.2,2.41709368]
[1760512676729,2.5621,4138.6,4137.1,0.443]
[1760512676730,0.1001,4138.5,4137.6,2.41684134]
[1760512676930,0.1001,4138.5,4137.7,2.41678609]
[1760512677307,0.1001,4138.5,4137.3,0.47800937]
[1760512677527,0.1001,4138.5,4137.1,0.443]
[1760512677528,0.1001,4138.5,4137.7,2.41677851]
[1760512677727,0.1001,4138.5,4137.1,0.443]
[1760512677932,2.462,4138.6,4137.9,2.41662685]
[1760512678139,0.32429335,4138.7,4137.2,1.92]
[1760512678443,0.32429335,4138.7,4137.2,4.33707807]
[1760512678444,4.97748808,4138.5,4137.2,4.33707807]
[1760512678614,0.1001,4138.4,4137.5,2.41688923]
[1760512679005,0.1587,4137.6,4136.9,0.223]
[1760512679329,2.461,4137.5,4137.2,2.41707775]
[1760512679526,2.461,4137.5,4137.1,2.41713941]
[1760512679842,2.461,4137.5,4137.0,2.41721053]
[1760512680042,2.461,4137.5,4137.4,2.41697684]
[1760512680210,4.639,4137.5,4137.2,2.41704199]
[1760512680411,4.639,4137.5,4137.2,0.443]
[1760512680607,4.639,4137.5,4137.2,2.41709162]
[1760512680807,3.55,4137.5,4137.2,2.41704111]
[1760512681032,3.55,4137.5,4137.2,0.48341388]
[1760512681234,0.0996,4138.5,4137.3,0.666]
[1760512681544,2.74056016,4138.7,4136.5,0.47260802]
[1760512681545,3.6496,4138.4,4136.5,0.47260802]
[1760512681852,2.41696316,4137.5,4136.2,2.41767806]
[1760512682055,2.5616,4137.4,4136.4,2.41756116]
[1760512682257,2.5616,4137.4,4136.5,1.92]
[1760512682425,3.05945247,4137.4,4136.6,0.02417444]
[1760512682626,3.05945247,4137.4,4136.0,0.443]
[1760512682839,3.05945247,4137.4,4136.4,2.41755867]
[1760512683057,3.05945247,4137.4,4136.4,2.4175609]
[1760512683058,2.51663526,4137.3,4136.4,2.4175609]
[1760512683259,2.51663526,4137.3,4135.3,9.3995265]
[1760512683260,0.0996,4137.3,4135.6,0.443]
[1760512683457,0.42189525,4137.2,4135.6,0.72930799]
[1760512683635,2.41721053,4137.0,4135.6,0.72930799]
[1760512683843,0.1002,4136.9,4135.7,2.41797035]
[1760512684049,2.51748029,4136.9,4136.1,2.41772551]
[1760512684561,2.4173274,4136.8,4135.9,2.41779646]
[1760512684726,2.41739892,4136.7,4135.6,0.443]
[1760512684923,2.51759892,4136.7,4135.5,2.41804146]
[1760512685123,2.51759892,4136.7,4135.8,2.41790151]
[1760512685377,2.41750271,4136.5,4136.1,0.1208]
[1760512685673,2.41750271,4136.5,4135.5,0.1208]
[1760512685674,2.41778561,4136.1,4135.5,0.1208]
[1760512685822,2.462,4136.0,4135.5,0.1208]
[1760512686460,0.1002,4136.1,4135.5,0.1208]
[1760512686645,2.462,4136.0,4135.5,0.1208]
[1760512686826,0.1002,4135.9,4135.5,0.1208]
[1760512687031,0.1002,4135.9,4135.3,0.002]
[1760512687032,2.41797294,4135.7,4135.3,0.002]
[1760512687353,0.221,4135.8,4135.3,0.002]
[1760512687551,0.1002,4135.7,4135.3,0.002]
[1760512687879,2.51818163,4135.7,4135.3,0.002]
[1760512688170,2.51828273,4135.6,4135.3,0.002]
[1760512688474,2.41810087,4135.5,4135.3,0.002]
[1760512688628,2.51830087,4135.5,4135.3,0.002]
[1760512688829,3.15194576,4135.4,4135.3,0.002]
[1760512689056,7.77723176,4135.4,4135.3,0.002]
[1760512689552,7.78585176,4135.4,4135.3,0.002]
[1760512689757,4.50581776,4135.4,4135.3,0.002]
[1760512690261,6.68381776,4135.4,4135.3,0.002]
[1760512690955,9.18815276,4135.4,4135.3,0.002]
[1760512691402,6.68381776,4135.4,4135.3,0.002]
[1760512692382,8.94572676,4135.4,4135.3,0.002]
[1760512692756,10.65822676,4135.4,4135.3,0.002]
[1760512693091,8.48022676,4135.4,4135.3,0.002]
[1760512693454,4.50581776,4135.4,4135.3,0.002]
[1760512693669,9.65764676,4135.4,4135.3,0.002]
[1760512694578,10.86485876,4135.4,4135.3,0.002]
[1760512695084,12.78485876,4135.4,4135.3,0.002]
[1760512695289,11.93191676,4135.4,4135.3,0.002]
[1760512695592,13.02875876,4135.4,4135.3,0.002]
[1760512696150,11.76570776,4135.4,4135.3,0.002]
[1760512696686,6.42581776,4135.4,4135.3,0.002]
[1760512696918,13.00320776,4135.4,4135.3,0.002]
[1760512697054,11.76570776,4135.4,4135.3,0.002]
[1760512697256,10.85170776,4135.4,4135.3,0.002]
[1760512697872,24.30607976,4135.4,4135.3,0.002]
[1760512698067,20.63311776,4135.4,4135.3,0.002]
[1760512698266,15.59891376,4135.4,4135.3,0.002]
[1760512698961,36.42581776,4135.4,4135.3,0.002]
[1760512700190,37.51581776,4135.4,4135.3,0.002]
[1760512700375,41.06581776,4135.4,4135.3,0.002]
[1760512701085,10.90973076,4135.4,4135.3,0.002]
[1760512701990,8.88681776,4135.4,4135.3,0.002]
[1760512702159,24.01785576,4135.4,4135.3,0.002]
[1760512702772,23.67103976,4135.4,4135.3,0.002]
[1760512702970,26.36541376,4135.4,4135.3,0.002]
[1760512703985,13.76338076,4135.4,4135.3,0.002]
[1760512704188,12.63440376,4135.4,4135.3,0.002]
[1760512705127,26.63846476,4135.4,4135.3,0.002]
[1760512705281,27.0177495,4135.4,4135.3,0.002]
[1760512705979,9.2661025,4135.4,4135.3,0.002]
[1760512706183,36.1970645,4135.4,4135.3,0.002]
[1760512707120,5.070876,4134.2,4134.1,0.002]
[1760512707285,7.43244766,4134.2,4134.1,0.002]
[1760512707484,3.97244766,4134.2,4134.1,0.002]
[1760512707684,3.97244766,4134.2,4134.1,0.6836]
[1760512707685,6.43344766,4134.2,4134.1,0.6836]
[1760512708386,3.97244766,4134.2,4134.1,0.6836]
[1760512708714,0.3793689,4134.7,4134.1,0.6836]
[1760512708905,2.461,4134.6,4134.2,0.4464]
[1760512709108,2.461,4134.6,4134.3,0.4464]
[1760512709302,2.41873896,4134.4,4134.1,0.2372]
[1760512709479,2.41879844,4134.3,4134.1,0.2372]
[1760512709683,4.87984766,4134.2,4134.1,0.2372]
[1760512709882,5.60970564,4134.2,4134.1,0.002]
[1760512710114,15.29966564,4134.2,4134.1,0.002]
[1760512710317,40.34330564,4134.2,4134.1,0.002]
[1760512710611,20.70546964,4134.2,4134.1,0.002]
[1760512710910,8.52344766,4134.2,4134.1,0.002]
[1760512711097,10.84189966,4134.2,4134.1,0.002]
[1760512711299,8.52344766,4134.2,4134.1,0.002]
[1760512711478,1.92,4134.2,4134.1,0.002]
[1760512711810,2.461,4134.2,4134.1,0.6836]
[1760512711993,4.87984766,4134.2,4134.1,0.6836]
[1760512712389,4.87984766,4134.2,4134.1,0.2372]
[1760512712590,4.87984766,4134.2,4134.1,0.6836]
[1760512713815,2.461,4134.2,4134.1,0.6836]
[1760512714218,4.87984766,4134.2,4134.1,0.6836]
[1760512714717,4.87884766,4134.2,4134.1,0.6836]
[1760512715883,21.49557764,4134.2,4134.1,0.002]
[1760512716091,17.23634064,4134.2,4134.1,0.002]
[1760512716291,16.46814064,4134.2,4134.1,0.002]
[1760512716491,16.22164064,4134.2,4134.1,0.002]
[1760512716726,2.64975898,4134.2,4134.1,0.002]
[1760512716927,6.79884766,4134.2,4134.1,0.6836]
[1760512717227,2.41874153,4134.4,4134.1,0.6836]
[1760512717431,2.5808,4134.3,4134.2,0.4464]
[1760512718485,2.41884766,4134.2,4134.1,0.002]
[1760512719193,2.46,4134.2,4134.1,0.2372]
[1760512719392,2.46,4134.2,4134.1,0.6836]
[1760512719836,2.41874646,4134.4,4134.1,0.6836]
[1760512720031,2.46,4134.2,4134.1,0.2372]
[1760512720240,7.05884766,4134.2,4134.1,0.2372]
[1760512720572,7.05884766,4134.2,4134.1,0.6929]
[1760512720773,4.64,4134.2,4134.1,0.6929]
[1760512721347,7.05884766,4134.2,4134.1,0.6929]
[1760512721586,4.64,4134.2,4134.1,0.6929]
[1760512721882,2.41884766,4134.2,4134.1,0.6929]
[1760512722080,4.87884766,4134.2,4134.1,0.6929]
[1760512722247,5.60860701,4134.2,4134.1,0.002]
[1760512722937,4.87884766,4134.2,4134.1,0.002]
[1760512723278,6.79884766,4134.2,4134.1,0.002]
[1760512724972,7.43244766,4134.2,4134.1,0.002]
[1760512725335,10.95007166,4134.2,4134.1,0.002]
[1760512725577,11.04917166,4134.2,4134.1,0.002]
[1760512725879,12.67622106,4134.2,4134.1,0.002]
[1760512727550,17.80796106,4134.2,4134.1,0.002]
[1760512728152,2.41914023,4133.7,4133.6,0.002]
[1760512728352,6.79914023,4133.7,4133.6,0.002]
[1760512729778,2.46,4133.7,4133.6,0.4577]
[1760512730167,4.7608,4133.7,4133.6,0.4577]
[1760512730992,1.09,4133.7,4133.6,0.4577]
[1760512731162,3.55,4133.7,4133.6,0.4577]
[1760512732798,3.55,4133.7,4133.6,0.002]
[1760512732982,2.815,4133.7,4133.6,0.002]
[1760512733157,2.46,4133.7,4133.6,0.4513]
[1760512733359,1.92,4134.6,4133.6,0.4513]
[1760512733681,3.0936,4134.5,4133.6,0.4513]
[1760512733893,2.41895702,4134.1,4133.6,0.4513]
[1760512734092,4.87897102,4134.0,4133.6,0.4513]
[1760512734295,2.46,4134.0,4133.7,0.4493]
[1760512734455,2.41907966,4133.9,4133.6,0.002]
[1760512734661,2.41907966,4133.9,4133.7,0.4493]
[1760512734860,2.46,4134.0,4133.6,0.002]
[1760512735168,2.41914023,4133.7,4133.6,0.002]
[1760512735702,2.46,4133.7,4133.6,0.002]
[1760512736264,5.60894865,4133.7,4133.6,0.002]
[1760512737705,24.14804265,4133.7,4133.6,0.002]
[1760512737907,22.97553465,4133.7,4133.6,0.002]
[1760512738077,24.89553465,4133.7,4133.6,0.002]
[1760512738875,37.93314865,4133.7,4133.6,0.002]
[1760512739862,38.26224865,4133.7,4133.6,0.002]
[1760512740106,39.35224865,4133.7,4133.6,0.002]
[1760512740267,2.41937434,4133.3,4133.2,0.002]
[1760512740469,21.57019977,4133.3,4133.2,0.002]
[1760512740673,3.55027177,4133.3,4133.2,0.002]
[1760512740885,6.01027177,4133.3,4133.2,0.002]
[1760512741391,18.97054477,4133.3,4133.2,0.002]
[1760512741604,14.36660477,4133.3,4133.2,0.002]
[1760512741765,16.38630477,4133.3,4133.2,0.002]
[1760512742393,8.02997177,4133.3,4133.2,0.002]
[1760512742563,34.30188677,4133.3,4133.2,0.002]
[1760512742901,34.97303288,4133.2,4133.1,1e-08]
[1760512743064,46.4552883,4133.2,4133.1,1e-08]
[1760512743398,46.5549883,4133.2,4133.1,1e-08]
[1760512743596,3.05326705,4132.8,4132.7,0.002]
[1760512743768,37.43326705,4132.8,4132.7,0.002]
[1760512744184,37.53296705,4132.8,4132.7,0.002]
[1760512744387,40.03907569,4132.8,4132.7,0.002]
[1760512745269,38.42065569,4132.8,4132.7,0.002]
[1760512745491,40.03907569,4132.8,4132.7,0.002]
[1760512747392,40.48837569,4132.8,4132.7,0.002]
[1760512748601,40.48837569,4132.8,4130.9,0.2185]
[1760512748602,3.05432137,4131.0,4130.9,0.2185]
[1760512748786,25.08878118,4130.7,4130.6,0.2238]
[1760512749108,3.05473163,4130.3,4130.2,0.4493]
[1760512749309,5.51573163,4130.3,4130.2,0.4493]
[1760512749605,19.09334763,4130.3,4130.2,0.4493]
[1760512749909,2.42124888,4130.1,4129.6,0.002]
[1760512750102,5.23684888,4130.1,4130.0,0.6518]
[1760512750297,2.8156,4130.1,4130.0,0.6518]
[1760512750612,5.51584888,4130.1,4130.0,0.6518]
[1760512750777,3.0946,4130.1,4130.0,0.6518]
[1760512750986,5.51584888,4130.1,4130.0,0.2238]
[1760512751179,5.51584888,4130.1,4130.0,0.6518]
[1760512751781,19.08187588,4130.1,4130.0,0.6518]
[1760512752723,19.08187588,4130.1,4129.6,0.002]
[1760512752724,3.0550834,4129.7,4129.6,0.002]
[1760512752885,30.5770104,4129.7,4129.6,0.002]
[1760512753083,12.3888684,4129.7,4129.6,0.002]
[1760512753287,14.3088684,4129.7,4129.6,0.002]
[1760512753585,14.4091684,4129.7,4129.6,0.002]
[1760512753799,34.61896016,4129.7,4129.6,0.002]
[1760512754088,36.0551743,4129.7,4129.6,0.002]
[1760512754289,30.1192103,4129.7,4129.6,0.002]
[1760512754489,28.5902723,4129.7,4129.6,0.002]
[1760512754682,34.4100503,4129.7,4129.6,0.002]
[1760512754882,32.6589443,4129.7,4129.6,0.002]
[1760512755813,32.9280393,4129.7,4129.6,0.002]
[1760512756116,32.3045663,4129.7,4129.6,0.002]
[1760512756319,32.0531403,4129.7,4129.6,0.002]
[1760512756705,35.8194323,4129.7,4129.6,0.002]
[1760512757023,13.3171463,4129.7,4129.6,0.002]
[1760512757194,15.7791463,4129.7,4129.6,0.002]
[1760512757617,16.4127463,4129.7,4129.6,0.002]
[1760512757803,30.6944403,4129.7,4129.6,0.002]
[1760512758008,30.3627683,4129.7,4129.6,0.002]
[1760512758208,28.9940173,4129.7,4129.6,0.002]
[1760512758527,29.2491173,4129.7,4129.6,0.002]
[1760512758715,9.8678433,4129.7,4129.6,0.002]
[1760512758915,39.5295733,4129.7,4129.6,0.002]
[1760512759120,33.05531796,4129.3,4129.2,1e-08]
[1760512759321,39.9434266,4129.3,4129.2,1e-08]
[1760512759939,29.6574926,4129.3,4129.2,1e-08]
[1760512760107,30.5601016,4129.3,4129.2,1e-08]
[1760512760439,22.3001046,4129.3,4129.2,1e-08]
[1760512760839,19.3050996,4129.3,4129.2,1e-08]
[1760512761910,25.7418796,4129.3,4129.2,1e-08]
[1760512762114,23.2493596,4129.3,4129.2,1e-08]
[1760512762843,20.8732606,4129.3,4129.2,1e-08]
[1760512763053,20.6264496,4129.3,4129.2,1e-08]
[1760512763356,12.70836021,4129.3,4129.2,1e-08]
[1760512763650,15.17036021,4129.3,4129.2,1e-08]
[1760512763856,7.57860821,4129.3,4129.2,1e-08]
[1760512764051,13.34383357,4129.3,4129.2,1e-08]
[1760512764977,23.72863257,4129.3,4129.2,1e-08]
[1760512765332,23.82763257,4129.3,4129.2,1e-08]
[1760512765929,32.95414923,4128.8,4128.7,0.002]
[1760512766129,24.55950823,4128.8,4128.7,0.002]
[1760512766350,14.28281687,4128.8,4128.7,0.002]
[1760512766550,15.11838587,4128.8,4128.7,0.002]
[1760512767058,25.46943987,4128.8,4128.7,0.002]
[1760512767939,9.94371987,4128.8,4128.7,0.002]
[1760512768139,40.3236086,4128.8,4128.7,0.002]
[1760512768339,31.5170236,4128.8,4128.7,0.002]
[1760512768566,24.8699406,4128.8,4128.7,0.002]
[1760512768736,24.3794076,4128.8,4128.7,0.002]
[1760512768935,10.3236086,4128.8,4128.7,0.002]
[1760512769138,19.26268096,4128.8,4128.7,0.002]
[1760512769870,33.05578723,4128.5,4128.4,1e-08]
[1760512770073,37.43778723,4128.5,4128.4,1e-08]
[1760512770276,39.62178723,4128.5,4128.4,1e-08]
[1760512770475,34.98657687,4128.5,4128.4,1e-08]
[1760512770662,35.08378209,4128.5,4128.4,1e-08]
[1760512771067,42.22510109,4128.5,4128.4,1e-08]
[1760512771253,30.47012909,4128.5,4128.4,1e-08]
[1760512771654,25.46646509,4128.5,4128.4,1e-08]
[1760512771888,15.76352709,4128.5,4128.4,0.42800001]
[1760512772065,20.70554909,4128.5,4128.4,0.42800001]
[1760512772389,20.70554909,4128.5,4128.4,1e-08]
[1760512773190,32.49005209,4128.5,4128.4,1e-08]
[1760512773389,26.78754109,4128.5,4128.4,1e-08]
[1760512774270,26.78754109,4128.5,4128.0,1e-08]
[1760512774271,34.97602193,4128.1,4128.0,1e-08]
[1760512774471,48.98961673,4128.1,4128.0,1e-08]
[1760512774665,49.08861673,4128.1,4128.0,1e-08]
[1760512774865,12.47915999,4127.8,4127.7,1e-08]
[1760512775066,16.98295999,4127.8,4127.7,1e-08]
[1760512775287,22.84893799,4127.8,4127.7,1e-08]
[1760512775480,23.34623542,4127.8,4127.7,1e-08]
[1760512775888,17.24176242,4127.8,4127.7,1e-08]
[1760512776192,2.463,4127.8,4127.7,0.42800001]
[1760512776767,3.269008,4128.4,4127.7,0.42800001]
[1760512776968,2.463,4128.3,4127.7,0.42800001]
[1760512777167,1.92,4128.1,4127.7,0.42800001]
[1760512777488,2.42254,4127.9,4127.7,0.42800001]
[1760512777804,1.92,4127.9,4127.7,0.42800001]
[1760512778702,2.42259799,4127.8,4127.7,0.42800001]
[1760512778864,1.92,4127.9,4127.7,0.42800001]
[1760512779192,0.37991351,4128.6,4127.7,0.42800001]
[1760512779369,2.81116551,4128.6,4128.5,0.2216]
[1760512779568,2.81116551,4128.6,4128.5,0.6496]
[1760512779569,5.26504207,4128.6,4128.5,0.6496]
[1760512779867,5.89864207,4128.6,4128.5,0.6496]
[1760512780067,6.99064207,4128.6,4128.5,0.6496]
[1760512780279,18.49720156,4128.6,4128.5,0.6496]
[1760512780591,0.37985434,4129.1,4128.5,0.6496]
[1760512780769,2.42179031,4129.2,4128.6,0.4654]
[1760512780977,2.463,4129.1,4128.6,0.4654]
[1760512781290,2.463,4129.0,4128.6,0.4654]
[1760512782291,0.001,4129.3,4128.6,2.88751133]
[1760512782589,2.463,4129.2,4128.6,0.4654]
[1760512782796,4.88479606,4129.2,4129.1,0.2192]
[1760512783087,4.88479606,4129.2,4129.1,0.6846]
[1760512783292,2.42212856,4128.6,4128.5,0.2216]
[1760512783492,3.05578723,4128.5,4128.3,0.4654]
[1760512783694,2.4222459,4128.4,4128.3,0.4654]
[1760512783987,2.42230458,4128.3,4128.2,0.2192]
[1760512784188,4.88530458,4128.3,4128.2,0.2192]
[1760512784394,3.05596347,4128.2,4128.1,0.2192]
[1760512784891,4.97596347,4128.2,4128.1,0.2192]
[1760512785295,0.6336,4127.9,4127.7,1e-08]
[1760512785499,7.43819799,4127.8,4127.7,1e-08]
[1760512786374,5.89812625,4127.8,4127.7,1e-08]
[1760512786598,5.89812625,4127.8,4127.7,0.46540001]
[1760512788499,5.89812625,4127.8,4127.7,1e-08]
[1760512789291,5.89812625,4127.8,4127.7,0.46540001]
[1760512789703,0.37992826,4127.8,4127.7,0.46540001]
[1760512789929,2.463,4127.8,4127.7,0.58620001]
[1760512790068,0.1208,4128.4,4127.9,2.42252288]
[1760512790424,0.1208,4128.4,4128.0,0.76627229]
[1760512790425,1.092,4128.3,4128.0,0.76627229]
[1760512790715,0.1208,4128.1,4127.7,1e-08]
[1760512790998,0.1208,4128.1,4127.8,2.42259489]
[1760512791297,2.463,4128.0,4127.9,0.4654]
[1760512798001,2.462,4128.0,4127.9,2.91216469]
[1760512798187,2.462,4128.0,4127.9,3.17935577]
[1760512799485,0.001,4128.1,4127.9,3.17935577]
[1760512799810,2.462,4128.0,4127.9,2.71395577]
[1760512800101,3.554,4128.0,4127.9,2.71395577]
[1760512800295,4.646,4128.0,4127.9,3.14165577]
[1760512800498,4.646,4128.0,4127.9,0.71911647]
[1760512800680,4.646,4128.0,4127.9,0.4277]
[1760512801102,4.646,4128.0,4127.9,2.8502393]
[1760512801403,4.646,4128.0,4127.9,0.4277]
[1760512802270,2.462,4128.0,4127.7,1e-08]
[1760512802679,4.88449192,4128.0,4127.7,1e-08]
[1760512802878,2.462,4128.0,4127.7,1e-08]
[1760512803076,2.42258357,4127.9,4127.7,1e-08]
[1760512803294,2.42255655,4127.9,4127.7,1e-08]
[1760512803886,2.42259799,4127.8,4127.7,1e-08]
[1760512804204,3.15949799,4127.8,4127.7,1e-08]
[1760512804392,5.76188799,4127.8,4127.7,1e-08]
[1760512804575,5.20469799,4127.8,4127.7,1e-08]
[1760512805410,35.17849799,4127.8,4127.7,1e-08]
[1760512805708,4.97625668,4127.7,4127.6,0.002]
[1760512806005,7.53725668,4127.7,4127.6,0.002]
[1760512806207,7.43825668,4127.7,4127.6,0.002]
[1760512806586,7.53725668,4127.7,4127.6,0.002]
[1760512806779,29.11729368,4127.7,4127.6,0.002]
[1760512806974,30.68543732,4127.7,4127.6,0.002]
[1760512807321,26.08571332,4127.7,4127.6,0.002]
[1760512807811,28.48646132,4127.7,4127.6,0.002]
[1760512808423,27.22033732,4127.7,4127.6,0.002]
[1760512808899,30.82614132,4127.7,4127.6,0.002]
[1760512809110,3.05643277,4127.4,4127.3,1e-08]
[1760512809412,32.18505541,4127.4,4127.3,1e-08]
[1760512809613,32.28405541,4127.4,4127.3,1e-08]
[1760512809782,32.38128355,4127.4,4127.3,1e-08]
[1760512810114,40.24274278,4127.4,4127.3,1e-08]
[1760512810818,21.78677378,4127.4,4127.3,1e-08]
[1760512810988,26.85853278,4127.4,4127.3,1e-08]
[1760512811386,26.95753278,4127.4,4127.3,1e-08]
[1760512811586,25.52468278,4127.4,4127.3,1e-08]
[1760512811782,13.19197164,4127.4,4127.3,1e-08]
[1760512812013,7.86251464,4127.4,4127.3,1e-08]
[1760512812220,0.0972194,4127.6,4127.3,0.44100001]
[1760512812528,11.61806762,4129.0,4127.4,0.441]
[1760512812529,2.42253197,4128.0,4127.4,0.441]
[1760512812739,2.462,4127.9,4127.4,0.441]
[1760512812896,2.4226142,4127.8,4127.4,0.441]
[1760512813231,2.4226142,4127.8,4127.3,1e-08]
[1760512813232,2.462,4127.9,4127.5,0.441]
[1760512813524,2.42260631,4127.8,4127.6,0.441]
[1760512813723,2.42260631,4127.8,4127.7,0.441]
[1760512813936,2.42277407,4127.5,4127.4,0.441]